[Event "Titled Tuesday Blitz January 17 Late 2023"]
[White "Sielecki, Christof"]
[Black "Papayan, Oleg"]
[WhiteFideId "4620437"]
[BlackFideId "4193911"]
[WhiteElo "2419"]
[BlackElo "2253"]
[Result "0-1"]
[Round "09"]
[TimeControl "180+2"]
[Date "2023.01.17"]
[WhiteClock "0:00:04"]
[BlackClock "0:00:03"]

1. e4 {[%clk 0:03:00]}  d5 {[%clk 0:02:59]} 2. exd5 {[%clk 0:03:00]}  Qxd5 {[%clk 0:03:00]} 3. Nc3 {[%clk 0:03:00]}  Qd8 {[%clk 0:03:00]} 4. d4 {[%clk 0:02:59]}  c6 {[%clk 0:03:01]} 5. Nf3 {[%clk 0:02:58]}  Bf5 {[%clk 0:03:01]} 6. Ne5 {[%clk 0:02:51]}  e6 {[%clk 0:03:01]} 7. g4 {[%clk 0:02:48]}  Bg6 {[%clk 0:02:59]} 8. h4 {[%clk 0:02:47]}  Bb4 {[%clk 0:02:18]} 9. h5 {[%clk 0:02:28]}  Be4 {[%clk 0:02:17]} 10. Rh3 {[%clk 0:02:15]}  Nd7 {[%clk 0:02:07]} 11. Bf4 {[%clk 0:01:53]}  Ngf6 {[%clk 0:01:43]} 12. a3 {[%clk 0:01:27]}  Bxc3+ {[%clk 0:01:28]} 13. bxc3 {[%clk 0:01:28]}  h6 {[%clk 0:00:44]} 14. Nc4 {[%clk 0:01:22]}  O-O {[%clk 0:00:36]} 15. g5 {[%clk 0:01:22]}  Nd5 {[%clk 0:00:35]} 16. Bd2 {[%clk 0:01:11]}  hxg5 {[%clk 0:00:30]} 17. h6 {[%clk 0:01:06]}  g6 {[%clk 0:00:25]} 18. Nd6 {[%clk 0:00:53]}  Bf5 {[%clk 0:00:24]} 19. Nxf5 {[%clk 0:00:50]}  exf5 {[%clk 0:00:25]} 20. h7+ {[%clk 0:00:47]}  Kg7 {[%clk 0:00:23]} 21. c4 {[%clk 0:00:40]}  Nf4 {[%clk 0:00:20]} 22. Re3 {[%clk 0:00:40]}  Rh8 {[%clk 0:00:17]} 23. Bc3 {[%clk 0:00:40]}  Nf6 {[%clk 0:00:14]} 24. Qd2 {[%clk 0:00:29]}  Ne4 {[%clk 0:00:10]} 25. Rxe4 {[%clk 0:00:26]}  fxe4 {[%clk 0:00:10]} 26. d5+ {[%clk 0:00:27]}  f6 {[%clk 0:00:11]} 27. O-O-O {[%clk 0:00:23]}  Rxh7 {[%clk 0:00:10]} 28. Qd4 {[%clk 0:00:19]}  Kf7 {[%clk 0:00:09]} 29. Qxe4 {[%clk 0:00:19]}  Rh8 {[%clk 0:00:08]} 30. dxc6 {[%clk 0:00:18]}  Qe7 {[%clk 0:00:07]} 31. Qf3 {[%clk 0:00:13]}  bxc6 {[%clk 0:00:07]} 32. Bb4 {[%clk 0:00:11]}  c5 {[%clk 0:00:07]} 33. Bc3 {[%clk 0:00:12]}  Rhd8 {[%clk 0:00:05]} 34. Re1 {[%clk 0:00:11]}  Qd7 {[%clk 0:00:04]} 35. Qh1 {[%clk 0:00:08]}  Rh8 {[%clk 0:00:03]} 36. Qf3 {[%clk 0:00:06]}  Rae8 {[%clk 0:00:03]} 37. Rd1 {[%clk 0:00:06]}  Qc7 {[%clk 0:00:03]} 38. Bg2 {[%clk 0:00:04]}  Re7 {[%clk 0:00:03]} 39. Qg3 {[%clk 0:00:04]}  Nxg2 {[%clk 0:00:03]} 40. Qxg2 {[%clk 0:00:04]}  Qf4+ {[%clk 0:00:03]} 41. Kb2 {[%clk 0:00:03]}  Rb8+ {[%clk 0:00:03]} 42. Ka2 {[%clk 0:00:04]}  Qf5 {[%clk 0:00:03]} 43. Rd3 {[%clk 0:00:03]}  Qe6 {[%clk 0:00:02]} 44. Qd5 {[%clk 0:00:03]}  Qxd5 {[%clk 0:00:02]} 45. cxd5 {[%clk 0:00:04]}  c4 {[%clk 0:00:02]} 46. Rd4 {[%clk 0:00:04]}  Re2 {[%clk 0:00:03]} 47. Bb2 {[%clk 0:00:04]}  Rxc2 {[%clk 0:00:03]} 0-1


[Site "https://www.chess.com"]

[Event "Titled Tuesday Blitz January 17 Late 2023"]
[White "Ibadov, Dashgyn"]
[Black "Vakhlamov, Igor L."]
[WhiteFideId "24107514"]
[BlackFideId "24126748"]
[WhiteElo "2391"]
[BlackElo "2413"]
[Result "0-1"]
[Round "09"]
[TimeControl "180+2"]
[Date "2023.01.17"]
[WhiteClock "0:00:01"]
[BlackClock "0:00:02"]

1. e4 {[%clk 0:03:00]}  c5 {[%clk 0:03:00]} 2. Nf3 {[%clk 0:03:00]}  e6 {[%clk 0:03:00]} 3. d4 {[%clk 0:03:00]}  cxd4 {[%clk 0:03:01]} 4. Nxd4 {[%clk 0:03:01]}  Nf6 {[%clk 0:03:02]} 5. Nc3 {[%clk 0:03:00]}  Nc6 {[%clk 0:03:02]} 6. Ndb5 {[%clk 0:03:01]}  Bc5 {[%clk 0:03:02]} 7. Bf4 {[%clk 0:03:00]}  O-O {[%clk 0:03:00]} 8. Bc7 {[%clk 0:03:00]}  Qe7 {[%clk 0:03:00]} 9. Bd6 {[%clk 0:03:01]}  Bxd6 {[%clk 0:03:01]} 10. Qxd6 {[%clk 0:03:01]}  Ne8 {[%clk 0:03:01]} 11. Qxe7 {[%clk 0:02:59]}  Nxe7 {[%clk 0:03:02]} 12. O-O-O {[%clk 0:02:58]}  f5 {[%clk 0:03:02]} 13. exf5 {[%clk 0:02:51]}  Nxf5 {[%clk 0:03:03]} 14. Bd3 {[%clk 0:02:36]}  a6 {[%clk 0:03:03]} 15. Na3 {[%clk 0:02:17]}  d5 {[%clk 0:02:42]} 16. Ne2 {[%clk 0:02:00]}  Bd7 {[%clk 0:02:37]} 17. c3 {[%clk 0:01:57]}  Rc8 {[%clk 0:02:30]} 18. Nc2 {[%clk 0:01:56]}  Nh4 {[%clk 0:02:18]} 19. g3 {[%clk 0:01:47]}  Nf3 {[%clk 0:02:18]} 20. h4 {[%clk 0:01:25]}  Nf6 {[%clk 0:02:11]} 21. Nf4 {[%clk 0:01:18]}  e5 {[%clk 0:01:32]} 22. Be2 {[%clk 0:01:19]}  exf4 {[%clk 0:01:10]} 23. Bxf3 {[%clk 0:01:19]}  Bg4 {[%clk 0:00:59]} 24. Bxg4 {[%clk 0:00:46]}  Nxg4 {[%clk 0:01:00]} 25. Rhf1 {[%clk 0:00:45]}  Rce8 {[%clk 0:01:01]} 26. Nd4 {[%clk 0:00:31]}  Rf6 {[%clk 0:00:52]} 27. Kd2 {[%clk 0:00:26]}  fxg3 {[%clk 0:00:45]} 28. fxg3 {[%clk 0:00:25]}  Nf2 {[%clk 0:00:45]} 29. Rde1 {[%clk 0:00:21]}  Ne4+ {[%clk 0:00:45]} 30. Kd3 {[%clk 0:00:19]}  Rxf1 {[%clk 0:00:41]} 31. Rxf1 {[%clk 0:00:20]}  Nxg3 {[%clk 0:00:41]} 32. Rf3 {[%clk 0:00:18]}  Ne4 {[%clk 0:00:38]} 33. Rf5 {[%clk 0:00:18]}  Nf6 {[%clk 0:00:37]} 34. Nf3 {[%clk 0:00:16]}  Re4 {[%clk 0:00:34]} 35. Rxd5 {[%clk 0:00:13]}  Ra4 {[%clk 0:00:20]} 36. Rd8+ {[%clk 0:00:12]}  Kf7 {[%clk 0:00:20]} 37. a3 {[%clk 0:00:13]}  b5 {[%clk 0:00:15]} 38. Nd4 {[%clk 0:00:12]}  Kg6 {[%clk 0:00:14]} 39. Rb8 {[%clk 0:00:11]}  Kh5 {[%clk 0:00:14]} 40. Rb7 {[%clk 0:00:12]}  Kxh4 {[%clk 0:00:06]} 41. Rxg7 {[%clk 0:00:11]}  h5 {[%clk 0:00:05]} 42. Kc2 {[%clk 0:00:11]}  Rc4 {[%clk 0:00:05]} 43. Rg6 {[%clk 0:00:09]}  Ng4 {[%clk 0:00:04]} 44. Rxa6 {[%clk 0:00:09]}  Kg3 {[%clk 0:00:03]} 45. Nxb5 {[%clk 0:00:09]}  h4 {[%clk 0:00:03]} 46. Nd6 {[%clk 0:00:07]}  Rf4 {[%clk 0:00:02]} 47. Ra5 {[%clk 0:00:04]}  h3 {[%clk 0:00:02]} 48. Rh5 {[%clk 0:00:02]}  h2 {[%clk 0:00:02]} 49. b4 {[%clk 0:00:02]}  Nf2 {[%clk 0:00:02]} 50. b5 {[%clk 0:00:01]}  Nh3 {[%clk 0:00:02]} 0-1


[Site "https://www.chess.com"]

[Event "Titled Tuesday Blitz January 17 Late 2023"]
[White "Djordjevic, Vuk"]
[Black "Golubev, Mikhail"]
[WhiteFideId "902098"]
[BlackFideId "14100983"]
[WhiteElo "2375"]
[BlackElo "2461"]
[Result "1-0"]
[Round "09"]
[TimeControl "180+2"]
[Date "2023.01.17"]
[WhiteClock "0:00:07"]
[BlackClock "0:00:08"]

1. d4 {[%clk 0:03:00]}  Nf6 {[%clk 0:02:57]} 2. Bg5 {[%clk 0:03:01]}  Ne4 {[%clk 0:02:54]} 3. Bf4 {[%clk 0:03:01]}  c5 {[%clk 0:02:54]} 4. f3 {[%clk 0:03:01]}  Qa5+ {[%clk 0:02:51]} 5. c3 {[%clk 0:03:00]}  Nf6 {[%clk 0:02:51]} 6. d5 {[%clk 0:03:00]}  Qb6 {[%clk 0:02:51]} 7. Bc1 {[%clk 0:02:59]}  e6 {[%clk 0:02:47]} 8. e4 {[%clk 0:02:59]}  exd5 {[%clk 0:02:44]} 9. exd5 {[%clk 0:03:00]}  c4 {[%clk 0:02:44]} 10. Bxc4 {[%clk 0:02:59]}  Bc5 {[%clk 0:02:42]} 11. Ne2 {[%clk 0:02:58]}  O-O {[%clk 0:02:40]} 12. b4 {[%clk 0:02:52]}  Bf2+ {[%clk 0:02:38]} 13. Kf1 {[%clk 0:02:52]}  d6 {[%clk 0:02:38]} 14. Nd2 {[%clk 0:02:48]}  Nbd7 {[%clk 0:02:22]} 15. Bb3 {[%clk 0:02:42]}  Ne5 {[%clk 0:02:21]} 16. Nc4 {[%clk 0:01:42]}  Nxc4 {[%clk 0:02:19]} 17. Bxc4 {[%clk 0:01:42]}  Bd7 {[%clk 0:02:06]} 18. Bg5 {[%clk 0:01:24]}  Rfe8 {[%clk 0:01:55]} 19. Bxf6 {[%clk 0:01:12]}  gxf6 {[%clk 0:01:53]} 20. Nd4 {[%clk 0:01:12]}  Bxd4 {[%clk 0:01:42]} 21. Qxd4 {[%clk 0:01:03]}  Qxd4 {[%clk 0:01:41]} 22. cxd4 {[%clk 0:01:04]}  Rac8 {[%clk 0:01:41]} 23. Bb3 {[%clk 0:01:04]}  Bb5+ {[%clk 0:01:40]} 24. Kf2 {[%clk 0:01:03]}  Re2+ {[%clk 0:01:40]} 25. Kg3 {[%clk 0:00:49]}  Kh8 {[%clk 0:01:31]} 26. Rhg1 {[%clk 0:00:49]}  Rg8+ {[%clk 0:01:29]} 27. Kf4 {[%clk 0:00:48]}  Rgxg2 {[%clk 0:01:18]} 28. Rxg2 {[%clk 0:00:49]}  Rxg2 {[%clk 0:01:18]} 29. Rc1 {[%clk 0:00:50]}  Rxh2 {[%clk 0:01:06]} 30. Rc7 {[%clk 0:00:49]}  Rh4+ {[%clk 0:01:05]} 31. Ke3 {[%clk 0:00:44]}  Kg7 {[%clk 0:00:35]} 32. Rxb7 {[%clk 0:00:36]}  a6 {[%clk 0:00:29]} 33. a4 {[%clk 0:00:23]}  Bf1 {[%clk 0:00:28]} 34. b5 {[%clk 0:00:24]}  axb5 {[%clk 0:00:26]} 35. axb5 {[%clk 0:00:24]}  f5 {[%clk 0:00:21]} 36. b6 {[%clk 0:00:21]}  f4+ {[%clk 0:00:20]} 37. Kd2 {[%clk 0:00:21]}  Rh2+ {[%clk 0:00:18]} 38. Kc3 {[%clk 0:00:18]}  Rf2 {[%clk 0:00:10]} 39. Rxf7+ {[%clk 0:00:12]}  Kxf7 {[%clk 0:00:08]} 40. b7 {[%clk 0:00:13]}  Rxf3+ {[%clk 0:00:08]} 41. Kb4 {[%clk 0:00:07]} 1-0


[Site "https://www.chess.com"]

[Event "Titled Tuesday Blitz January 17 Late 2023"]
[White "Jovic, Stanoje"]
[Black "Klose, Eli"]
[WhiteFideId "905020"]
[BlackFideId "16242955"]
[WhiteElo "2075"]
[BlackElo "1519"]
[Result "0-1"]
[Round "09"]
[TimeControl "180+2"]
[Date "2023.01.17"]
[WhiteClock "0:00:06"]
[BlackClock "0:00:07"]

1. c4 {[%clk 0:03:00]}  Nf6 {[%clk 0:02:57]} 2. g3 {[%clk 0:03:00]}  c5 {[%clk 0:02:57]} 3. Bg2 {[%clk 0:03:01]}  Nc6 {[%clk 0:02:58]} 4. Nc3 {[%clk 0:03:01]}  d6 {[%clk 0:02:58]} 5. Nf3 {[%clk 0:03:01]}  g6 {[%clk 0:02:58]} 6. O-O {[%clk 0:03:00]}  Bd7 {[%clk 0:02:58]} 7. d4 {[%clk 0:03:00]}  cxd4 {[%clk 0:02:59]} 8. Nxd4 {[%clk 0:03:00]}  Bg7 {[%clk 0:03:00]} 9. Nxc6 {[%clk 0:03:00]}  Bxc6 {[%clk 0:02:59]} 10. Bxc6+ {[%clk 0:02:59]}  bxc6 {[%clk 0:03:00]} 11. Qa4 {[%clk 0:02:56]}  Qd7 {[%clk 0:02:54]} 12. Bg5 {[%clk 0:02:55]}  O-O {[%clk 0:02:44]} 13. Bxf6 {[%clk 0:02:54]}  Bxf6 {[%clk 0:02:34]} 14. Nd5 {[%clk 0:02:54]}  Bxb2 {[%clk 0:02:27]} 15. Rab1 {[%clk 0:02:53]}  Bf6 {[%clk 0:02:16]} 16. Nxf6+ {[%clk 0:02:53]}  exf6 {[%clk 0:02:17]} 17. Rfd1 {[%clk 0:02:52]}  Rfd8 {[%clk 0:02:15]} 18. Rd3 {[%clk 0:02:44]}  d5 {[%clk 0:01:53]} 19. e4 {[%clk 0:02:34]}  d4 {[%clk 0:01:45]} 20. c5 {[%clk 0:02:30]}  Qe6 {[%clk 0:01:37]} 21. Rxd4 {[%clk 0:02:24]}  Rxd4 {[%clk 0:01:36]} 22. Qxd4 {[%clk 0:02:24]}  Qxa2 {[%clk 0:01:37]} 23. Rb7 {[%clk 0:02:23]}  Qe6 {[%clk 0:01:35]} 24. Rd7 {[%clk 0:02:15]}  a5 {[%clk 0:01:30]} 25. Rd6 {[%clk 0:01:41]}  Qe8 {[%clk 0:01:29]} 26. Qa4 {[%clk 0:01:30]}  Kg7 {[%clk 0:01:07]} 27. h4 {[%clk 0:01:29]}  h5 {[%clk 0:01:06]} 28. Kg2 {[%clk 0:01:17]}  Ra6 {[%clk 0:01:05]} 29. f4 {[%clk 0:01:12]}  Qe7 {[%clk 0:00:54]} 30. Kf3 {[%clk 0:01:04]}  Qb7 {[%clk 0:00:49]} 31. Qd4 {[%clk 0:01:02]}  Qe7 {[%clk 0:00:44]} 32. Qa4 {[%clk 0:00:56]}  Kg8 {[%clk 0:00:39]} 33. g4 {[%clk 0:00:48]}  hxg4+ {[%clk 0:00:36]} 34. Kxg4 {[%clk 0:00:48]}  Kg7 {[%clk 0:00:35]} 35. Kf3 {[%clk 0:00:43]}  Qb7 {[%clk 0:00:27]} 36. h5 {[%clk 0:00:34]}  gxh5 {[%clk 0:00:18]} 37. Qd4 {[%clk 0:00:29]}  Qe7 {[%clk 0:00:18]} 38. e5 {[%clk 0:00:29]}  fxe5 {[%clk 0:00:17]} 39. fxe5 {[%clk 0:00:29]}  Ra8 {[%clk 0:00:14]} 40. e6+ {[%clk 0:00:29]}  Kh7 {[%clk 0:00:11]} 41. Qe4+ {[%clk 0:00:24]}  Kh8 {[%clk 0:00:07]} 42. Qe5+ {[%clk 0:00:20]}  f6 {[%clk 0:00:08]} 43. Qxh5+ {[%clk 0:00:20]}  Qh7 {[%clk 0:00:08]} 44. Qxh7+ {[%clk 0:00:18]}  Kxh7 {[%clk 0:00:09]} 45. Rxc6 {[%clk 0:00:18]}  a4 {[%clk 0:00:09]} 46. Rb6 {[%clk 0:00:19]}  a3 {[%clk 0:00:09]} 47. Rb1 {[%clk 0:00:19]}  a2 {[%clk 0:00:09]} 48. Ra1 {[%clk 0:00:19]}  Kg6 {[%clk 0:00:10]} 49. Ke4 {[%clk 0:00:19]}  Ra3 {[%clk 0:00:08]} 50. c6 {[%clk 0:00:17]}  Rc3 {[%clk 0:00:08]} 51. Kd5 {[%clk 0:00:16]}  Rc2 {[%clk 0:00:08]} 52. Kd6 {[%clk 0:00:15]}  f5 {[%clk 0:00:09]} 53. c7 {[%clk 0:00:14]}  Kf6 {[%clk 0:00:09]} 54. Kd7 {[%clk 0:00:13]}  Rd2+ {[%clk 0:00:09]} 55. Ke8 {[%clk 0:00:09]}  Rc2 {[%clk 0:00:08]} 56. Kd7 {[%clk 0:00:09]}  Rd2+ {[%clk 0:00:09]} 57. Kc6 {[%clk 0:00:08]}  Rc2+ {[%clk 0:00:08]} 58. Kb7 {[%clk 0:00:08]}  Rb2+ {[%clk 0:00:04]} 59. Ka7 {[%clk 0:00:07]}  Rc2 {[%clk 0:00:05]} 60. Kb8 {[%clk 0:00:07]}  Rb2+ {[%clk 0:00:05]} 61. Ka7 {[%clk 0:00:07]}  Rc2 {[%clk 0:00:06]} 62. Kb6 {[%clk 0:00:08]}  Rb2+ {[%clk 0:00:06]} 63. Kc5 {[%clk 0:00:08]}  Rc2+ {[%clk 0:00:07]} 64. Kd6 {[%clk 0:00:08]}  f4 {[%clk 0:00:07]} 65. Rxa2 {[%clk 0:00:06]}  Rxa2 {[%clk 0:00:06]} 66. e7 {[%clk 0:00:06]}  Rd2+ {[%clk 0:00:07]} 67. Kc6 {[%clk 0:00:06]}  Kxe7 {[%clk 0:00:07]} 0-1


[Site "https://www.chess.com"]

[Event "Titled Tuesday Blitz January 17 Late 2023"]
[White "Haszon, David"]
[Black "Kavutskiy, Konstantin"]
[WhiteFideId "733610"]
[BlackFideId "2026384"]
[WhiteElo "2264"]
[BlackElo "2414"]
[Result "1-0"]
[Round "09"]
[TimeControl "180+2"]
[Date "2023.01.17"]
[WhiteClock "0:00:50"]
[BlackClock "0:00:55"]

1. d4 {[%clk 0:03:00]}  Nf6 {[%clk 0:02:59]} 2. Bf4 {[%clk 0:03:00]}  g6 {[%clk 0:02:55]} 3. Nc3 {[%clk 0:03:00]}  d5 {[%clk 0:02:55]} 4. e3 {[%clk 0:02:58]}  Bg7 {[%clk 0:02:55]} 5. Be2 {[%clk 0:02:53]}  O-O {[%clk 0:02:53]} 6. h4 {[%clk 0:02:53]}  h5 {[%clk 0:02:52]} 7. Nf3 {[%clk 0:02:50]}  c5 {[%clk 0:02:52]} 8. Nb5 {[%clk 0:02:40]}  a6 {[%clk 0:02:37]} 9. Nc7 {[%clk 0:02:27]}  Ra7 {[%clk 0:02:36]} 10. Nxd5 {[%clk 0:02:26]}  Nxd5 {[%clk 0:02:31]} 11. Bxb8 {[%clk 0:02:26]}  Ra8 {[%clk 0:02:32]} 12. Be5 {[%clk 0:02:21]}  Qb6 {[%clk 0:02:22]} 13. Bxg7 {[%clk 0:02:17]}  Kxg7 {[%clk 0:02:23]} 14. c4 {[%clk 0:02:07]}  Nf6 {[%clk 0:02:18]} 15. Qb3 {[%clk 0:01:59]}  Qa5+ {[%clk 0:02:15]} 16. Qc3 {[%clk 0:01:56]}  Qxc3+ {[%clk 0:02:14]} 17. bxc3 {[%clk 0:01:57]}  Ne4 {[%clk 0:02:14]} 18. Rc1 {[%clk 0:01:54]}  b6 {[%clk 0:02:10]} 19. Nd2 {[%clk 0:01:53]}  Nxd2 {[%clk 0:02:01]} 20. Kxd2 {[%clk 0:01:54]}  Bb7 {[%clk 0:02:01]} 21. Bf3 {[%clk 0:01:54]}  Bxf3 {[%clk 0:02:00]} 22. gxf3 {[%clk 0:01:55]}  Rfd8 {[%clk 0:01:57]} 23. Rb1 {[%clk 0:01:53]}  Rd6 {[%clk 0:01:57]} 24. a4 {[%clk 0:01:40]}  Rc8 {[%clk 0:01:56]} 25. Kd3 {[%clk 0:01:36]}  a5 {[%clk 0:01:49]} 26. Rb5 {[%clk 0:01:21]}  Rcc6 {[%clk 0:01:47]} 27. Rhb1 {[%clk 0:01:19]}  f6 {[%clk 0:01:34]} 28. d5 {[%clk 0:01:16]}  e6 {[%clk 0:01:33]} 29. e4 {[%clk 0:01:15]}  f5 {[%clk 0:01:30]} 30. Ke3 {[%clk 0:01:10]}  exd5 {[%clk 0:01:20]} 31. cxd5 {[%clk 0:01:11]}  Rc7 {[%clk 0:01:19]} 32. Rxb6 {[%clk 0:01:11]}  Rdd7 {[%clk 0:01:15]} 33. Re6 {[%clk 0:01:04]}  Rb7 {[%clk 0:01:10]} 34. Rbb6 {[%clk 0:01:00]}  Rxb6 {[%clk 0:01:08]} 35. Rxb6 {[%clk 0:01:01]}  fxe4 {[%clk 0:01:08]} 36. fxe4 {[%clk 0:01:01]}  g5 {[%clk 0:01:00]} 37. hxg5 {[%clk 0:01:01]}  h4 {[%clk 0:00:59]} 38. Rh6 {[%clk 0:01:01]}  Rb7 {[%clk 0:00:58]} 39. Rxh4 {[%clk 0:00:59]}  Rb3 {[%clk 0:00:58]} 40. Kd3 {[%clk 0:00:57]}  Kg6 {[%clk 0:00:57]} 41. f4 {[%clk 0:00:54]}  Ra3 {[%clk 0:00:56]} 42. Rh6+ {[%clk 0:00:54]}  Kf7 {[%clk 0:00:55]} 43. f5 {[%clk 0:00:51]}  Rxa4 {[%clk 0:00:55]} 44. e5 {[%clk 0:00:50]} 1-0


[Site "https://www.chess.com"]

[Event "Titled Tuesday Blitz January 17 Late 2023"]
[White "Mazurkiewicz, Michal"]
[Black "Prado Lobo, Jonas"]
[WhiteFideId "1124943"]
[BlackFideId "32050666"]
[WhiteElo "2145"]
[BlackElo "2313"]
[Result "1-0"]
[Round "09"]
[TimeControl "180+2"]
[Date "2023.01.17"]
[WhiteClock "0:00:12"]
[BlackClock "0:00:18"]

1. e4 {[%clk 0:02:46]}  e5 {[%clk 0:02:59]} 2. Nf3 {[%clk 0:02:46]}  Nc6 {[%clk 0:03:00]} 3. d3 {[%clk 0:02:46]}  Bc5 {[%clk 0:02:59]} 4. g3 {[%clk 0:02:46]}  d6 {[%clk 0:02:57]} 5. Bg2 {[%clk 0:02:47]}  Nge7 {[%clk 0:02:53]} 6. O-O {[%clk 0:02:47]}  O-O {[%clk 0:02:52]} 7. c3 {[%clk 0:02:47]}  Bb6 {[%clk 0:02:45]} 8. b4 {[%clk 0:02:47]}  a6 {[%clk 0:02:41]} 9. Bb2 {[%clk 0:02:46]}  d5 {[%clk 0:02:39]} 10. a3 {[%clk 0:02:42]}  Bg4 {[%clk 0:02:34]} 11. Nbd2 {[%clk 0:02:41]}  dxe4 {[%clk 0:02:28]} 12. dxe4 {[%clk 0:02:41]}  Qd3 {[%clk 0:02:28]} 13. h3 {[%clk 0:02:24]}  Bh5 {[%clk 0:02:19]} 14. Qb1 {[%clk 0:02:15]}  Rad8 {[%clk 0:02:14]} 15. Qxd3 {[%clk 0:01:59]}  Rxd3 {[%clk 0:02:15]} 16. g4 {[%clk 0:01:59]}  Bg6 {[%clk 0:02:14]} 17. Nc4 {[%clk 0:01:59]}  Bxe4 {[%clk 0:02:12]} 18. Nfxe5 {[%clk 0:01:52]}  Nxe5 {[%clk 0:02:10]} 19. Bxe4 {[%clk 0:00:27]}  Rg3+ {[%clk 0:02:08]} 20. Kh2 {[%clk 0:00:24]}  Nxc4 {[%clk 0:02:07]} 21. Kxg3 {[%clk 0:00:23]}  Nxb2 {[%clk 0:02:07]} 22. Bxb7 {[%clk 0:00:19]}  a5 {[%clk 0:02:05]} 23. Rfe1 {[%clk 0:00:16]}  Ng6 {[%clk 0:02:02]} 24. Ba6 {[%clk 0:00:15]}  Rd8 {[%clk 0:01:57]} 25. Bb5 {[%clk 0:00:13]}  h6 {[%clk 0:01:50]} 26. Rab1 {[%clk 0:00:12]}  Rd2 {[%clk 0:01:48]} 27. Re2 {[%clk 0:00:13]}  Rxe2 {[%clk 0:01:44]} 28. Bxe2 {[%clk 0:00:14]}  Na4 {[%clk 0:01:44]} 29. bxa5 {[%clk 0:00:14]}  Bxa5 {[%clk 0:01:42]} 30. Rb8+ {[%clk 0:00:15]}  Kh7 {[%clk 0:01:42]} 31. Ra8 {[%clk 0:00:13]}  Nxc3 {[%clk 0:01:42]} 32. Bd3 {[%clk 0:00:14]}  Bb6 {[%clk 0:01:38]} 33. h4 {[%clk 0:00:14]}  f5 {[%clk 0:01:04]} 34. Bxf5 {[%clk 0:00:14]}  Ne2+ {[%clk 0:01:04]} 35. Kh2 {[%clk 0:00:09]}  Nd4 {[%clk 0:00:41]} 36. h5 {[%clk 0:00:08]}  Nxf5 {[%clk 0:00:39]} 37. hxg6+ {[%clk 0:00:08]}  Kxg6 {[%clk 0:00:40]} 38. gxf5+ {[%clk 0:00:09]}  Kxf5 {[%clk 0:00:41]} 39. a4 {[%clk 0:00:09]}  Bxf2 {[%clk 0:00:41]} 40. a5 {[%clk 0:00:10]}  c5 {[%clk 0:00:38]} 41. a6 {[%clk 0:00:10]}  c4 {[%clk 0:00:21]} 42. Rc8 {[%clk 0:00:10]}  Ke6 {[%clk 0:00:18]} 43. Rxc4 {[%clk 0:00:07]}  Kd7 {[%clk 0:00:18]} 44. Kg2 {[%clk 0:00:05]}  Bb6 {[%clk 0:00:17]} 45. Rb4 {[%clk 0:00:04]}  Kc6 {[%clk 0:00:17]} 46. Ra4 {[%clk 0:00:03]}  Ba7 {[%clk 0:00:18]} 47. Kf3 {[%clk 0:00:03]}  Kb5 {[%clk 0:00:17]} 48. Ra2 {[%clk 0:00:04]}  g6 {[%clk 0:00:14]} 49. Kg4 {[%clk 0:00:04]}  Kb6 {[%clk 0:00:14]} 50. Kf4 {[%clk 0:00:04]}  Bb8+ {[%clk 0:00:14]} 51. Ke4 {[%clk 0:00:05]}  Ka7 {[%clk 0:00:13]} 52. Kd5 {[%clk 0:00:05]}  h5 {[%clk 0:00:12]} 53. Kc6 {[%clk 0:00:05]}  h4 {[%clk 0:00:11]} 54. Kb5 {[%clk 0:00:06]}  h3 {[%clk 0:00:10]} 55. Re2 {[%clk 0:00:05]}  h2 {[%clk 0:00:10]} 56. Re7+ {[%clk 0:00:05]}  Ka8 {[%clk 0:00:11]} 57. Rh7 {[%clk 0:00:05]}  Bf4 {[%clk 0:00:09]} 58. Rh8+ {[%clk 0:00:04]}  Ka7 {[%clk 0:00:09]} 59. Rh7+ {[%clk 0:00:05]}  Ka8 {[%clk 0:00:10]} 60. a7 {[%clk 0:00:05]}  Be3 {[%clk 0:00:08]} 61. Ka6 {[%clk 0:00:05]}  Bxa7 {[%clk 0:00:07]} 62. Rxa7+ {[%clk 0:00:05]}  Kb8 {[%clk 0:00:08]} 63. Rh7 {[%clk 0:00:06]}  g5 {[%clk 0:00:08]} 64. Rxh2 {[%clk 0:00:06]}  Kc7 {[%clk 0:00:09]} 65. Rg2 {[%clk 0:00:07]}  Kd6 {[%clk 0:00:10]} 66. Rxg5 {[%clk 0:00:07]}  Ke6 {[%clk 0:00:11]} 67. Rb5 {[%clk 0:00:07]}  Kd6 {[%clk 0:00:10]} 68. Kb6 {[%clk 0:00:07]}  Ke6 {[%clk 0:00:11]} 69. Rc5 {[%clk 0:00:08]}  Kd6 {[%clk 0:00:11]} 70. Kb5 {[%clk 0:00:07]}  Ke6 {[%clk 0:00:10]} 71. Kc6 {[%clk 0:00:08]}  Kf6 {[%clk 0:00:10]} 72. Rd5 {[%clk 0:00:09]}  Ke6 {[%clk 0:00:11]} 73. Kc5 {[%clk 0:00:09]}  Ke7 {[%clk 0:00:11]} 74. Rd6 {[%clk 0:00:09]}  Kf7 {[%clk 0:00:12]} 75. Kd5 {[%clk 0:00:09]}  Ke7 {[%clk 0:00:13]} 76. Ke5 {[%clk 0:00:10]}  Kf7 {[%clk 0:00:13]} 77. Rb6 {[%clk 0:00:10]}  Ke7 {[%clk 0:00:14]} 78. Rb7+ {[%clk 0:00:11]}  Kd8 {[%clk 0:00:14]} 79. Ke6 {[%clk 0:00:11]}  Kc8 {[%clk 0:00:15]} 80. Rh7 {[%clk 0:00:11]}  Kb8 {[%clk 0:00:16]} 81. Kd6 {[%clk 0:00:11]}  Kc8 {[%clk 0:00:17]} 82. Rg7 {[%clk 0:00:11]}  Kb8 {[%clk 0:00:18]} 83. Kc6 {[%clk 0:00:11]}  Ka8 {[%clk 0:00:18]} 84. Kb6 {[%clk 0:00:11]}  Kb8 {[%clk 0:00:18]} 85. Rg8# {[%clk 0:00:12]} 1-0


[Site "https://www.chess.com"]